[Event "Titled Tuesday Blitz November 01 Early 2022"]
[White "Le, Tuan Minh"]
[Black "Odegov, Artem"]
[WhiteFideId "12401153"]
[BlackFideId "34183644"]
[WhiteElo "2530"]
[BlackElo "2298"]
[Result "1-0"]
[Round "02"]
[TimeControl "180+1"]
[Date "2022.11.01"]
[WhiteClock "0:00:28"]
[BlackClock "0:00:13"]

1. d4 {[%clk 0:03:00]}  d5 {[%clk 0:03:00]} 2. Nf3 {[%clk 0:03:00]}  Nf6 {[%clk 0:02:59]} 3. Bf4 {[%clk 0:03:00]}  e6 {[%clk 0:02:59]} 4. e3 {[%clk 0:03:01]}  c5 {[%clk 0:03:00]} 5. c3 {[%clk 0:03:01]}  Nc6 {[%clk 0:03:00]} 6. Nbd2 {[%clk 0:03:01]}  Be7 {[%clk 0:02:59]} 7. Bd3 {[%clk 0:03:01]}  O-O {[%clk 0:02:59]} 8. Ne5 {[%clk 0:03:01]}  Nxe5 {[%clk 0:02:58]} 9. Bxe5 {[%clk 0:03:01]}  b6 {[%clk 0:02:52]} 10. Qf3 {[%clk 0:02:57]}  Bb7 {[%clk 0:02:50]} 11. Qg3 {[%clk 0:02:45]}  Rc8 {[%clk 0:02:36]} 12. Rd1 {[%clk 0:02:39]}  g6 {[%clk 0:02:24]} 13. Qh3 {[%clk 0:02:30]}  Nd7 {[%clk 0:02:21]} 14. Bf4 {[%clk 0:02:26]}  Bg5 {[%clk 0:02:17]} 15. Bg3 {[%clk 0:02:24]}  cxd4 {[%clk 0:02:14]} 16. exd4 {[%clk 0:02:22]}  Qf6 {[%clk 0:01:41]} 17. Nf3 {[%clk 0:02:19]}  Bf4 {[%clk 0:01:41]} 18. O-O {[%clk 0:01:57]}  Bxg3 {[%clk 0:01:37]} 19. fxg3 {[%clk 0:01:51]}  Qg7 {[%clk 0:01:38]} 20. g4 {[%clk 0:01:51]}  Nf6 {[%clk 0:01:38]} 21. g5 {[%clk 0:01:50]}  Ne4 {[%clk 0:01:38]} 22. Bxe4 {[%clk 0:01:50]}  dxe4 {[%clk 0:01:39]} 23. Ne5 {[%clk 0:01:51]}  Rcd8 {[%clk 0:00:41]} 24. Ng4 {[%clk 0:01:48]}  Kh8 {[%clk 0:00:33]} 25. Nf6 {[%clk 0:01:46]}  Rd5 {[%clk 0:00:33]} 26. Nxd5 {[%clk 0:01:20]}  Bxd5 {[%clk 0:00:34]} 27. a3 {[%clk 0:01:20]}  f5 {[%clk 0:00:29]} 28. gxf6 {[%clk 0:01:20]}  Rxf6 {[%clk 0:00:29]} 29. Rxf6 {[%clk 0:01:18]}  Qxf6 {[%clk 0:00:30]} 30. Rf1 {[%clk 0:01:19]}  Qg5 {[%clk 0:00:30]} 31. Qg3 {[%clk 0:01:19]}  Qxg3 {[%clk 0:00:24]} 32. hxg3 {[%clk 0:01:19]}  Kg7 {[%clk 0:00:25]} 33. Kf2 {[%clk 0:01:18]}  Bc4 {[%clk 0:00:18]} 34. Re1 {[%clk 0:01:18]}  Bd3 {[%clk 0:00:18]} 35. Ke3 {[%clk 0:01:12]}  Kf6 {[%clk 0:00:18]} 36. Rc1 {[%clk 0:01:09]}  e5 {[%clk 0:00:17]} 37. dxe5+ {[%clk 0:01:05]}  Kxe5 {[%clk 0:00:18]} 38. c4 {[%clk 0:01:06]}  Kd6 {[%clk 0:00:13]} 39. b4 {[%clk 0:01:06]}  h5 {[%clk 0:00:13]} 40. c5+ {[%clk 0:01:06]}  bxc5 {[%clk 0:00:14]} 41. Rxc5 {[%clk 0:01:07]}  a6 {[%clk 0:00:13]} 42. Rg5 {[%clk 0:01:08]}  Kc6 {[%clk 0:00:13]} 43. Rxg6+ {[%clk 0:01:08]}  Kb5 {[%clk 0:00:14]} 44. Rg5+ {[%clk 0:01:08]}  Ka4 {[%clk 0:00:15]} 45. Rxh5 {[%clk 0:01:04]}  Kxa3 {[%clk 0:00:15]} 46. g4 {[%clk 0:01:04]}  Kxb4 {[%clk 0:00:15]} 47. g5 {[%clk 0:01:05]}  a5 {[%clk 0:00:15]} 48. g6 {[%clk 0:01:05]}  a4 {[%clk 0:00:15]} 49. g7 {[%clk 0:01:04]}  Bc4 {[%clk 0:00:16]} 50. Kxe4 {[%clk 0:01:03]}  a3 {[%clk 0:00:17]} 51. Rh8 {[%clk 0:00:31]}  a2 {[%clk 0:00:15]} 52. Ra8 {[%clk 0:00:32]}  Kb3 {[%clk 0:00:14]} 53. Kd4 {[%clk 0:00:26]}  Bf7 {[%clk 0:00:13]} 54. g4 {[%clk 0:00:24]}  Kb2 {[%clk 0:00:13]} 55. Ke5 {[%clk 0:00:18]}  a1=Q {[%clk 0:00:11]} 56. Rxa1 {[%clk 0:00:18]}  Kxa1 {[%clk 0:00:12]} 57. Kf6 {[%clk 0:00:19]}  Ba2 {[%clk 0:00:11]} 58. Ke7 {[%clk 0:00:19]}  Kb2 {[%clk 0:00:12]} 59. Kf8 {[%clk 0:00:20]}  Kc3 {[%clk 0:00:09]} 60. g8=Q {[%clk 0:00:20]}  Bxg8 {[%clk 0:00:10]} 61. Kxg8 {[%clk 0:00:21]}  Kd4 {[%clk 0:00:11]} 62. g5 {[%clk 0:00:21]}  Ke5 {[%clk 0:00:12]} 63. g6 {[%clk 0:00:22]}  Kf6 {[%clk 0:00:12]} 64. g7 {[%clk 0:00:23]}  Kg6 {[%clk 0:00:10]} 65. Kh8 {[%clk 0:00:23]}  Kh6 {[%clk 0:00:09]} 66. g8=Q {[%clk 0:00:23]}  Kh5 {[%clk 0:00:10]} 67. Kh7 {[%clk 0:00:24]}  Kh4 {[%clk 0:00:11]} 68. Kh6 {[%clk 0:00:24]}  Kh3 {[%clk 0:00:12]} 69. Kh5 {[%clk 0:00:25]}  Kh2 {[%clk 0:00:13]} 70. Kh4 {[%clk 0:00:26]}  Kh1 {[%clk 0:00:13]} 71. Kg3 {[%clk 0:00:26]}  Kg1 {[%clk 0:00:13]} 72. Qf7 {[%clk 0:00:27]}  Kh1 {[%clk 0:00:13]} 73. Qf1# {[%clk 0:00:28]} 1-0


[Site "https://www.chess.com"]

[Event "Titled Tuesday Blitz November 01 Early 2022"]
[White "Leve, Nitai"]
[Black "Vusatiuk, Vladimir"]
[WhiteFideId "2006898"]
[BlackFideId "14118610"]
[WhiteElo "2144"]
[BlackElo "2208"]
[Result "0-1"]
[Round "02"]
[TimeControl "180+1"]
[Date "2022.11.02"]
[WhiteClock "0:00:12"]
[BlackClock "0:00:16"]

1. e4 {[%clk 0:03:00]}  e5 {[%clk 0:02:59]} 2. Nf3 {[%clk 0:03:00]}  Nc6 {[%clk 0:02:59]} 3. Bb5 {[%clk 0:03:00]}  a6 {[%clk 0:02:59]} 4. Ba4 {[%clk 0:02:59]}  Nf6 {[%clk 0:02:59]} 5. d4 {[%clk 0:02:59]}  Nxd4 {[%clk 0:02:10]} 6. Nxe5 {[%clk 0:02:49]}  Ne6 {[%clk 0:02:06]} 7. O-O {[%clk 0:02:41]}  Be7 {[%clk 0:01:58]} 8. Be3 {[%clk 0:02:08]}  Nxe4 {[%clk 0:01:49]} 9. Qg4 {[%clk 0:02:07]}  Nf6 {[%clk 0:01:40]} 10. Qh3 {[%clk 0:02:07]}  O-O {[%clk 0:01:31]} 11. Nd2 {[%clk 0:02:05]}  d6 {[%clk 0:01:32]} 12. Nef3 {[%clk 0:02:03]}  Nf4 {[%clk 0:01:28]} 13. Qh4 {[%clk 0:02:01]}  N6d5 {[%clk 0:01:04]} 14. Qxf4 {[%clk 0:02:01]}  Nxf4 {[%clk 0:01:04]} 15. Bxf4 {[%clk 0:02:02]}  Bf6 {[%clk 0:01:02]} 16. c3 {[%clk 0:02:01]}  b5 {[%clk 0:00:59]} 17. Bc2 {[%clk 0:01:59]}  Bb7 {[%clk 0:00:59]} 18. Rfe1 {[%clk 0:01:46]}  Re8 {[%clk 0:00:59]} 19. Be3 {[%clk 0:01:43]}  Qd7 {[%clk 0:00:56]} 20. Red1 {[%clk 0:01:41]}  h6 {[%clk 0:00:49]} 21. a4 {[%clk 0:01:41]}  c5 {[%clk 0:00:41]} 22. a5 {[%clk 0:01:41]}  Qc6 {[%clk 0:00:38]} 23. h3 {[%clk 0:01:33]}  Re7 {[%clk 0:00:38]} 24. Nf1 {[%clk 0:01:31]}  Rae8 {[%clk 0:00:36]} 25. Bb3 {[%clk 0:01:31]}  c4 {[%clk 0:00:33]} 26. Bc2 {[%clk 0:01:32]}  Qc7 {[%clk 0:00:30]} 27. N1h2 {[%clk 0:01:31]}  Be4 {[%clk 0:00:30]} 28. Bxe4 {[%clk 0:01:30]}  Rxe4 {[%clk 0:00:31]} 29. Ng4 {[%clk 0:01:31]}  Bd8 {[%clk 0:00:29]} 30. Bd4 {[%clk 0:01:25]}  h5 {[%clk 0:00:28]} 31. Ne3 {[%clk 0:01:25]}  Qc6 {[%clk 0:00:26]} 32. Nd2 {[%clk 0:01:19]}  Rf4 {[%clk 0:00:25]} 33. Ndf1 {[%clk 0:01:17]}  h4 {[%clk 0:00:24]} 34. Nh2 {[%clk 0:01:16]}  Bf6 {[%clk 0:00:24]} 35. Nf3 {[%clk 0:01:14]}  Rxf3 {[%clk 0:00:23]} 36. gxf3 {[%clk 0:01:13]}  Qxf3 {[%clk 0:00:24]} 37. Bxf6 {[%clk 0:01:12]}  Qxf6 {[%clk 0:00:24]} 38. Rd4 {[%clk 0:01:10]}  Re5 {[%clk 0:00:19]} 39. Rad1 {[%clk 0:01:08]}  Rg5+ {[%clk 0:00:19]} 40. Kf1 {[%clk 0:01:08]}  Qf3 {[%clk 0:00:19]} 41. Rxh4 {[%clk 0:00:47]}  Re5 {[%clk 0:00:16]} 42. Rxd6 {[%clk 0:00:42]}  g5 {[%clk 0:00:17]} 43. Rg4 {[%clk 0:00:14]}  Rxe3 {[%clk 0:00:17]} 44. Rxg5+ {[%clk 0:00:15]}  Kf8 {[%clk 0:00:14]} 45. Rg3 {[%clk 0:00:08]}  Qh1+ {[%clk 0:00:15]} 46. Rg1 {[%clk 0:00:08]}  Re1+ {[%clk 0:00:15]} 47. Kxe1 {[%clk 0:00:08]}  Qxg1+ {[%clk 0:00:16]} 48. Ke2 {[%clk 0:00:09]}  Qb1 {[%clk 0:00:15]} 49. Rxa6 {[%clk 0:00:09]}  Qxb2+ {[%clk 0:00:15]} 50. Kf1 {[%clk 0:00:10]}  Qxc3 {[%clk 0:00:15]} 51. Ra8+ {[%clk 0:00:11]}  Kg7 {[%clk 0:00:16]} 52. a6 {[%clk 0:00:11]}  Qa1+ {[%clk 0:00:16]} 53. Kg2 {[%clk 0:00:12]}  c3 {[%clk 0:00:16]} 54. Rc8 {[%clk 0:00:11]}  Qxa6 {[%clk 0:00:15]} 55. Rxc3 {[%clk 0:00:11]}  b4 {[%clk 0:00:16]} 56. Rb3 {[%clk 0:00:12]}  Qc4 {[%clk 0:00:16]} 57. Rg3+ {[%clk 0:00:12]}  Kf8 {[%clk 0:00:16]} 0-1


[Site "https://www.chess.com"]

[Event "Titled Tuesday Blitz November 01 Early 2022"]
[White "Lewtak, Damian"]
[Black "Fawzy, Adham"]
[WhiteFideId "1141724"]
[BlackFideId "10613129"]
[WhiteElo "2329"]
[BlackElo "2541"]
[Result "1-0"]
[Round "02"]
[TimeControl "180+1"]
[Date "2022.11.02"]
[WhiteClock "0:01:09"]
[BlackClock "0:00:01"]

1. h4 {[%clk 0:02:53]}  e5 {[%clk 0:02:56]} 2. a4 {[%clk 0:02:52]}  d5 {[%clk 0:02:55]} 3. e3 {[%clk 0:02:52]}  Nc6 {[%clk 0:02:55]} 4. d3 {[%clk 0:02:53]}  Nf6 {[%clk 0:02:54]} 5. Nd2 {[%clk 0:02:52]}  Bd6 {[%clk 0:02:54]} 6. b3 {[%clk 0:02:52]}  O-O {[%clk 0:02:53]} 7. Bb2 {[%clk 0:02:53]}  Qe7 {[%clk 0:02:52]} 8. g3 {[%clk 0:02:53]}  Be6 {[%clk 0:02:49]} 9. Bg2 {[%clk 0:02:53]}  Rad8 {[%clk 0:02:49]} 10. Ne2 {[%clk 0:02:53]}  Rfe8 {[%clk 0:02:50]} 11. e4 {[%clk 0:02:51]}  dxe4 {[%clk 0:02:43]} 12. Nxe4 {[%clk 0:02:51]}  Nxe4 {[%clk 0:02:41]} 13. Bxe4 {[%clk 0:02:52]}  f5 {[%clk 0:02:36]} 14. Bg2 {[%clk 0:02:51]}  e4 {[%clk 0:02:03]} 15. O-O {[%clk 0:02:51]}  exd3 {[%clk 0:01:53]} 16. cxd3 {[%clk 0:02:49]}  Qf7 {[%clk 0:01:36]} 17. Nc1 {[%clk 0:02:33]}  Bd5 {[%clk 0:01:20]} 18. Bxd5 {[%clk 0:02:17]}  Qxd5 {[%clk 0:01:20]} 19. Ne2 {[%clk 0:02:18]}  Be5 {[%clk 0:01:13]} 20. Bxe5 {[%clk 0:02:15]}  Nxe5 {[%clk 0:01:14]} 21. Nf4 {[%clk 0:02:01]}  Qd4 {[%clk 0:00:45]} 22. Re1 {[%clk 0:01:50]}  Ng4 {[%clk 0:00:29]} 23. Ra2 {[%clk 0:01:41]}  g6 {[%clk 0:00:18]} 24. Ne6 {[%clk 0:01:31]}  Qb4 {[%clk 0:00:05]} 25. Rae2 {[%clk 0:01:25]}  Rd6 {[%clk 0:00:05]} 26. Ng5 {[%clk 0:01:18]}  Rxe2 {[%clk 0:00:04]} 27. Qxe2 {[%clk 0:01:19]}  Rd8 {[%clk 0:00:02]} 28. Qe6+ {[%clk 0:01:18]}  Kh8 {[%clk 0:00:01]} 29. Nf7+ {[%clk 0:01:15]}  Kg7 {[%clk 0:00:02]} 30. Nxd8 {[%clk 0:01:15]}  Qd2 {[%clk 0:00:02]} 31. Qe7+ {[%clk 0:01:12]}  Kh6 {[%clk 0:00:02]} 32. Nf7+ {[%clk 0:01:09]}  Kg7 {[%clk 0:00:02]} 33. Ng5+ {[%clk 0:01:09]}  Kg8 {[%clk 0:00:01]} 34. Qf7+ {[%clk 0:01:08]}  Kh8 {[%clk 0:00:01]} 35. Re8# {[%clk 0:01:09]} 1-0


[Site "https://www.chess.com"]

[Event "Titled Tuesday Blitz November 01 Early 2022"]
[White "Lohani, Sujana"]
[Black "Cabezas Solano, David Alejandro"]
[WhiteFideId "12311987"]
[BlackFideId "6507522"]
[WhiteElo "1691"]
[BlackElo "2035"]
[Result "0-1"]
[Round "02"]
[TimeControl "180+1"]
[Date "2022.11.02"]
[WhiteClock "0:00:35"]
[BlackClock "0:00:53"]

1. d4 {[%clk 0:03:00]}  Nf6 {[%clk 0:02:58]} 2. Nf3 {[%clk 0:03:01]}  e6 {[%clk 0:02:58]} 3. c4 {[%clk 0:03:02]}  d5 {[%clk 0:02:58]} 4. g3 {[%clk 0:03:03]}  Be7 {[%clk 0:02:59]} 5. Bg2 {[%clk 0:03:03]}  O-O {[%clk 0:02:59]} 6. O-O {[%clk 0:03:04]}  dxc4 {[%clk 0:02:59]} 7. Ne5 {[%clk 0:03:03]}  Qd6 {[%clk 0:02:58]} 8. Nxc4 {[%clk 0:03:02]}  Qa6 {[%clk 0:02:59]} 9. Qc2 {[%clk 0:02:57]}  Nc6 {[%clk 0:02:56]} 10. Rd1 {[%clk 0:02:51]}  Rd8 {[%clk 0:02:52]} 11. e3 {[%clk 0:02:46]}  Nb4 {[%clk 0:02:51]} 12. Qb3 {[%clk 0:02:43]}  c5 {[%clk 0:02:45]} 13. a3 {[%clk 0:01:59]}  Nc6 {[%clk 0:02:41]} 14. Bf1 {[%clk 0:01:53]}  b5 {[%clk 0:02:27]} 15. Ne5 {[%clk 0:01:50]}  c4 {[%clk 0:02:22]} 16. Qc2 {[%clk 0:01:30]}  Bb7 {[%clk 0:02:17]} 17. a4 {[%clk 0:01:12]}  Nxe5 {[%clk 0:01:45]} 18. dxe5 {[%clk 0:01:06]}  Qc6 {[%clk 0:01:43]} 19. e4 {[%clk 0:00:35]}  Rxd1 {[%clk 0:00:53]} 0-1


[Site "https://www.chess.com"]

[Event "Titled Tuesday Blitz November 01 Early 2022"]
[White "Luxama, Jacques Muller"]
[Black "Borgaonkar Akshay"]
[WhiteFideId "11900113"]
[BlackFideId "25639110"]
[WhiteElo "1931"]
[BlackElo "2063"]
[Result "0-1"]
[Round "02"]
[TimeControl "180+1"]
[Date "2022.11.02"]
[WhiteClock "0:00:05"]
[BlackClock "0:00:13"]

1. d4 {[%clk 0:03:00]}  Nf6 {[%clk 0:02:59]} 2. c4 {[%clk 0:02:59]}  g6 {[%clk 0:02:58]} 3. Nc3 {[%clk 0:02:59]}  Bg7 {[%clk 0:02:59]} 4. g3 {[%clk 0:02:50]}  d5 {[%clk 0:02:57]} 5. Bg2 {[%clk 0:02:50]}  dxc4 {[%clk 0:02:55]} 6. Qa4+ {[%clk 0:02:47]}  Nbd7 {[%clk 0:02:52]} 7. Qxc4 {[%clk 0:02:43]}  O-O {[%clk 0:02:50]} 8. Nf3 {[%clk 0:02:43]}  c6 {[%clk 0:02:50]} 9. O-O {[%clk 0:02:42]}  Nb6 {[%clk 0:02:50]} 10. Qd3 {[%clk 0:02:38]}  Nbd5 {[%clk 0:02:50]} 11. e4 {[%clk 0:02:36]}  Nxc3 {[%clk 0:02:50]} 12. bxc3 {[%clk 0:02:36]}  Nd7 {[%clk 0:02:48]} 13. Bg5 {[%clk 0:02:27]}  h6 {[%clk 0:02:47]} 14. Be3 {[%clk 0:02:25]}  e5 {[%clk 0:02:46]} 15. Rfd1 {[%clk 0:02:24]}  Qc7 {[%clk 0:02:46]} 16. Rac1 {[%clk 0:02:22]}  b6 {[%clk 0:02:41]} 17. Qd2 {[%clk 0:02:20]}  Ba6 {[%clk 0:02:38]} 18. Bxh6 {[%clk 0:02:18]}  Rad8 {[%clk 0:02:27]} 19. Bxg7 {[%clk 0:02:17]}  Kxg7 {[%clk 0:02:27]} 20. Qe3 {[%clk 0:02:11]}  Rde8 {[%clk 0:02:18]} 21. h4 {[%clk 0:02:06]}  exd4 {[%clk 0:02:06]} 22. cxd4 {[%clk 0:02:04]}  Nf6 {[%clk 0:02:05]} 23. Ne5 {[%clk 0:02:00]}  Bb7 {[%clk 0:01:49]} 24. Nxc6 {[%clk 0:01:44]}  Bxc6 {[%clk 0:01:47]} 25. d5 {[%clk 0:01:44]}  Nxd5 {[%clk 0:01:32]} 26. Rxd5 {[%clk 0:01:43]}  Qb7 {[%clk 0:01:31]} 27. Qd4+ {[%clk 0:01:36]}  Kg8 {[%clk 0:01:30]} 28. Re5 {[%clk 0:01:26]}  Rxe5 {[%clk 0:01:24]} 29. Qxe5 {[%clk 0:01:26]}  Re8 {[%clk 0:01:24]} 30. Qf4 {[%clk 0:01:22]}  Bxe4 {[%clk 0:01:14]} 31. Rc7 {[%clk 0:01:21]}  Qd5 {[%clk 0:01:13]} 32. f3 {[%clk 0:00:23]}  Bf5 {[%clk 0:01:09]} 33. g4 {[%clk 0:00:22]}  Be6 {[%clk 0:01:07]} 34. Kh2 {[%clk 0:00:19]}  Qxa2 {[%clk 0:01:03]} 35. h5 {[%clk 0:00:19]}  Qd5 {[%clk 0:00:17]} 36. hxg6 {[%clk 0:00:17]}  fxg6 {[%clk 0:00:17]} 37. Rxa7 {[%clk 0:00:07]}  Bf7 {[%clk 0:00:12]} 38. Qf6 {[%clk 0:00:04]}  Qe5+ {[%clk 0:00:12]} 39. Qxe5 {[%clk 0:00:04]}  Rxe5 {[%clk 0:00:12]} 40. Rb7 {[%clk 0:00:04]}  Rb5 {[%clk 0:00:09]} 41. Kg3 {[%clk 0:00:04]}  Rb2 {[%clk 0:00:09]} 42. f4 {[%clk 0:00:03]}  Rxg2+ {[%clk 0:00:09]} 43. Kxg2 {[%clk 0:00:02]}  Bd5+ {[%clk 0:00:09]} 44. Kg3 {[%clk 0:00:02]}  Bxb7 {[%clk 0:00:10]} 45. f5 {[%clk 0:00:02]}  gxf5 {[%clk 0:00:10]} 46. gxf5 {[%clk 0:00:03]}  Kf7 {[%clk 0:00:11]} 47. Kf4 {[%clk 0:00:04]}  Kf6 {[%clk 0:00:11]} 48. Ke3 {[%clk 0:00:04]}  Kxf5 {[%clk 0:00:12]} 49. Kd4 {[%clk 0:00:05]}  Bc6 {[%clk 0:00:13]} 50. Kc4 {[%clk 0:00:05]}  Ke5 {[%clk 0:00:13]} 0-1


[Site "https://www.chess.com"]

[Event "Titled Tuesday Blitz November 01 Early 2022"]
[White "Makarian, Rudik"]
[Black "D`Arruda, Ricardo D."]
[WhiteFideId "44105681"]
[BlackFideId "100692"]
[WhiteElo "2405"]
[BlackElo "2463"]
[Result "1-0"]
[Round "02"]
[TimeControl "180+1"]
[Date "2022.11.02"]
[WhiteClock "0:00:35"]
[BlackClock "0:00:13"]

1. d3 {[%clk 0:03:00]}  d5 {[%clk 0:02:58]} 2. f4 {[%clk 0:03:01]}  Nc6 {[%clk 0:02:57]} 3. Nf3 {[%clk 0:03:01]}  Nf6 {[%clk 0:02:57]} 4. Nbd2 {[%clk 0:02:57]}  Bg4 {[%clk 0:02:50]} 5. h3 {[%clk 0:02:57]}  Bxf3 {[%clk 0:02:48]} 6. Nxf3 {[%clk 0:02:58]}  Qd6 {[%clk 0:02:41]} 7. g4 {[%clk 0:02:12]}  e5 {[%clk 0:02:38]} 8. fxe5 {[%clk 0:02:11]}  Nxe5 {[%clk 0:02:39]} 9. Bg2 {[%clk 0:02:07]}  Nxf3+ {[%clk 0:02:32]} 10. Bxf3 {[%clk 0:02:07]}  Qg3+ {[%clk 0:02:32]} 11. Kd2 {[%clk 0:02:04]}  O-O-O {[%clk 0:02:28]} 12. Qg1 {[%clk 0:01:47]}  Ne4+ {[%clk 0:02:17]} 13. Bxe4 {[%clk 0:01:46]}  Qxg1 {[%clk 0:02:13]} 14. Rxg1 {[%clk 0:01:47]}  dxe4 {[%clk 0:02:13]} 15. Rf1 {[%clk 0:01:47]}  f6 {[%clk 0:02:09]} 16. Rf5 {[%clk 0:01:39]}  Be7 {[%clk 0:01:51]} 17. Kc3 {[%clk 0:01:25]}  exd3 {[%clk 0:01:49]} 18. exd3 {[%clk 0:01:23]}  g6 {[%clk 0:01:50]} 19. Rf3 {[%clk 0:01:23]}  h5 {[%clk 0:01:48]} 20. Be3 {[%clk 0:01:23]}  hxg4 {[%clk 0:01:46]} 21. hxg4 {[%clk 0:01:24]}  Rh2 {[%clk 0:01:36]} 22. Raf1 {[%clk 0:01:19]}  Rd6 {[%clk 0:01:34]} 23. R1f2 {[%clk 0:01:17]}  Rc6+ {[%clk 0:01:29]} 24. Kd2 {[%clk 0:01:16]}  Rxf2+ {[%clk 0:01:25]} 25. Rxf2 {[%clk 0:01:17]}  Kd7 {[%clk 0:01:24]} 26. d4 {[%clk 0:01:11]}  Ke6 {[%clk 0:01:22]} 27. Kd3 {[%clk 0:01:12]}  b5 {[%clk 0:01:21]} 28. c3 {[%clk 0:01:12]}  a5 {[%clk 0:01:19]} 29. b3 {[%clk 0:01:12]}  a4 {[%clk 0:01:18]} 30. bxa4 {[%clk 0:01:12]}  bxa4 {[%clk 0:01:15]} 31. c4 {[%clk 0:01:13]}  Kf7 {[%clk 0:01:14]} 32. d5 {[%clk 0:01:13]}  Ra6 {[%clk 0:01:13]} 33. Bd4 {[%clk 0:01:10]}  Rd6 {[%clk 0:00:57]} 34. Rb2 {[%clk 0:01:01]}  c6 {[%clk 0:00:56]} 35. Bc5 {[%clk 0:01:01]}  Rd7 {[%clk 0:00:56]} 36. Kd4 {[%clk 0:01:00]}  cxd5 {[%clk 0:00:54]} 37. cxd5 {[%clk 0:01:01]}  Bd8 {[%clk 0:00:45]} 38. d6 {[%clk 0:00:58]}  Ke6 {[%clk 0:00:35]} 39. Re2+ {[%clk 0:00:58]}  Kf7 {[%clk 0:00:35]} 40. Kd5 {[%clk 0:00:59]}  Rb7 {[%clk 0:00:35]} 41. Kc6 {[%clk 0:00:55]}  Rb1 {[%clk 0:00:34]} 42. d7 {[%clk 0:00:54]}  Rd1 {[%clk 0:00:23]} 43. Re8 {[%clk 0:00:53]}  Ba5 {[%clk 0:00:22]} 44. Re7+ {[%clk 0:00:47]}  Kg8 {[%clk 0:00:21]} 45. Bb6 {[%clk 0:00:33]}  Bxb6 {[%clk 0:00:16]} 46. Kxb6 {[%clk 0:00:34]}  Kf8 {[%clk 0:00:13]} 47. Re8+ {[%clk 0:00:34]}  Kf7 {[%clk 0:00:13]} 48. d8=Q {[%clk 0:00:35]} 1-0


[Site "https://www.chess.com"]

[Event "Titled Tuesday Blitz November 01 Early 2022"]
[White "Manukian, Artak"]
[Black "Larina, Maria"]
[WhiteFideId "13301373"]
[BlackFideId "24113182"]
[WhiteElo "2460"]
[BlackElo "1848"]
[Result "1-0"]
[Round "02"]
[TimeControl "180+1"]
[Date "2022.11.02"]
[WhiteClock "0:00:15"]
[BlackClock "0:00:51"]

1. e4 {[%clk 0:01:54]}  c6 {[%clk 0:02:57]} 2. d4 {[%clk 0:01:53]}  d5 {[%clk 0:02:57]} 3. e5 {[%clk 0:01:54]}  c5 {[%clk 0:02:57]} 4. dxc5 {[%clk 0:01:54]}  Nc6 {[%clk 0:02:57]} 5. Bb5 {[%clk 0:01:53]}  e6 {[%clk 0:02:52]} 6. b4 {[%clk 0:01:52]}  a5 {[%clk 0:02:51]} 7. c3 {[%clk 0:01:51]}  Bd7 {[%clk 0:02:47]} 8. Bxc6 {[%clk 0:01:51]}  bxc6 {[%clk 0:02:44]} 9. Nf3 {[%clk 0:01:52]}  f6 {[%clk 0:02:36]} 10. O-O {[%clk 0:01:50]}  fxe5 {[%clk 0:02:20]} 11. Nxe5 {[%clk 0:01:50]}  Nf6 {[%clk 0:02:20]} 12. Nd2 {[%clk 0:01:45]}  Be7 {[%clk 0:02:17]} 13. Ndf3 {[%clk 0:01:44]}  O-O {[%clk 0:02:17]} 14. Nd4 {[%clk 0:01:43]}  Ne4 {[%clk 0:02:09]} 15. Ndxc6 {[%clk 0:01:34]}  Bxc6 {[%clk 0:02:01]} 16. Nxc6 {[%clk 0:01:34]}  Qc7 {[%clk 0:01:59]} 17. Nxe7+ {[%clk 0:01:32]}  Qxe7 {[%clk 0:02:00]} 18. Qd3 {[%clk 0:01:12]}  Qh4 {[%clk 0:01:53]} 19. Be3 {[%clk 0:01:09]}  Rf5 {[%clk 0:01:49]} 20. b5 {[%clk 0:01:02]}  Rh5 {[%clk 0:01:48]} 21. h3 {[%clk 0:00:55]}  Ng5 {[%clk 0:01:42]} 22. Bxg5 {[%clk 0:00:28]}  Rxg5 {[%clk 0:01:43]} 23. Kh1 {[%clk 0:00:26]}  Rf8 {[%clk 0:01:37]} 24. c6 {[%clk 0:00:24]}  Rxf2 {[%clk 0:01:35]} 25. Rxf2 {[%clk 0:00:25]}  Qxf2 {[%clk 0:01:35]} 26. Rg1 {[%clk 0:00:25]}  Qb6 {[%clk 0:01:31]} 27. c4 {[%clk 0:00:22]}  dxc4 {[%clk 0:01:27]} 28. Qxc4 {[%clk 0:00:21]}  Qxb5 {[%clk 0:01:16]} 29. Qxe6+ {[%clk 0:00:20]}  Kf8 {[%clk 0:01:13]} 30. Qd6+ {[%clk 0:00:17]}  Kg8 {[%clk 0:01:10]} 31. Qd8+ {[%clk 0:00:16]}  Kf7 {[%clk 0:01:07]} 32. c7 {[%clk 0:00:16]}  Rd5 {[%clk 0:00:52]} 33. Qxd5+ {[%clk 0:00:14]}  Qxd5 {[%clk 0:00:51]} 34. c8=Q {[%clk 0:00:15]} 1-0


[Site "https://www.chess.com"]